bitfinex/quotes_BTCUSD_20220303
["timestamp","ask_amount","ask_price","bid_price","bid_amount"]
[1646326127734,0.059754,42573.0,42571.0,0.26386231]
[1646326127934,0.058754,42573.0,42571.0,0.26386231]
[1646326128538,0.058749,42577.0,42572.0,0.361714]
[1646326128936,0.058749,42577.0,42573.0,0.05768522]
[1646326129136,0.002,42578.0,42576.0,0.0509463]
[1646326129533,0.002,42578.0,42577.0,0.55546482]
[1646326129933,0.117498,42582.0,42577.0,0.55546482]
[1646326130136,0.117498,42582.0,42578.0,0.361714]
[1646326130336,0.117498,42582.0,42576.0,0.0509463]
[1646326130778,0.119498,42582.0,42576.0,0.0509463]
[1646326131380,0.119498,42582.0,42577.0,0.21008937]
[1646326131980,0.117498,42582.0,42577.0,0.21008937]
[1646326132183,0.117498,42582.0,42581.0,0.2128246]
[1646326134826,0.058748,42582.0,42579.0,6.501e-05]
[1646326135031,0.058748,42582.0,42579.0,0.00013002]
[1646326135225,0.058748,42582.0,42579.0,0.00019503]
[1646326135626,0.058748,42582.0,42579.0,0.00013002]
[1646326135827,0.058748,42582.0,42579.0,0.16923386]
[1646326136228,0.058748,42582.0,42580.0,0.18978516]
[1646326136627,0.058748,42582.0,42579.0,0.16923386]
[1646326137027,0.02040839,42581.0,42579.0,0.16923386]
[1646326137727,0.02040839,42581.0,42579.0,0.3629592]
[1646326137926,0.02040839,42581.0,42579.0,0.19372534]
[1646326138800,0.02040839,42581.0,42579.0,0.19472534]
[1646326139801,0.02040839,42581.0,42579.0,0.001]
[1646326140103,0.02040839,42581.0,42580.0,0.0509463]
[1646326141002,0.02040839,42581.0,42577.0,0.361714]
[1646326141403,0.02040839,42581.0,42576.0,0.205849]
[1646326141602,0.02040839,42581.0,42575.0,0.0509463]
[1646326141924,0.02040839,42581.0,42576.0,0.1788099]
[1646326142527,0.02040839,42581.0,42575.0,0.0509463]
[1646326142924,0.02040839,42581.0,42571.0,0.002]
[1646326142925,0.117524,42578.0,42571.0,0.002]
[1646326143126,0.345207,42577.0,42571.0,0.002]
[1646326143424,0.05876,42576.0,42571.0,0.002]
[1646326143623,0.345207,42575.0,42571.0,0.002]
[1646326143825,0.361714,42575.0,42571.0,0.002]
[1646326144025,0.05876,42576.0,42571.0,0.002]
[1646326144428,0.361714,42575.0,42570.0,0.16257516]
[1646326144624,0.05876,42576.0,42570.0,0.16257516]
[1646326144825,0.05876,42576.0,42568.0,0.01174]
[1646326144826,0.361714,42574.0,42568.0,0.01174]
[1646326145026,0.05876,42576.0,42568.0,0.01174]
[1646326145225,0.361714,42572.0,42568.0,0.01174]
[1646326145426,0.058768,42572.0,42568.0,0.01174]
[1646326145880,0.058768,42572.0,42569.0,0.1574986]
[1646326146082,0.058768,42572.0,42569.0,0.2084449]
[1646326146479,0.02040839,42571.0,42569.0,0.2084449]
[1646326146880,0.02040839,42571.0,42568.0,0.01174]
[1646326147287,0.02347,42569.0,42557.0,0.1988]
[1646326147482,0.02347,42569.0,42552.0,0.1988]
[1646326147483,0.082239,42567.0,42552.0,0.1988]
[1646326147682,0.082239,42567.0,42550.0,0.0001]
[1646326147683,0.60411979,42566.0,42550.0,0.0001]
[1646326147881,0.345207,42559.0,42550.0,0.0001]
[1646326148082,0.361714,42557.0,42550.0,0.0001]
[1646326148480,0.385184,42557.0,42550.0,0.0001]
[1646326149080,0.385184,42557.0,42551.0,0.06523023]
[1646326149282,0.385184,42557.0,42551.0,0.06529271]
[1646326149728,0.345207,42555.0,42551.0,0.06541767]
[1646326150126,0.345207,42555.0,42551.0,0.00018744]
[1646326150329,0.345207,42555.0,42551.0,0.00012496]
[1646326150527,0.345207,42555.0,42550.0,0.0001]
[1646326150728,0.351207,42555.0,42551.0,6.249e-05]
[1646326151137,0.409998,42555.0,42551.0,0.00018747]
[1646326151330,0.463798,42555.0,42551.0,0.00018747]
[1646326151734,1.0,42552.0,42550.0,0.0001]
[1646326151935,0.61125354,42551.0,42550.0,0.0001]
[1646326152133,0.65825354,42551.0,42550.0,0.0001]
[1646326152334,0.082281,42547.0,42537.0,0.0022]
[1646326152730,0.361714,42546.0,42537.0,0.0022]
[1646326154266,0.361714,42546.0,42539.0,0.20813788]
[1646326154870,0.42053,42546.0,42537.0,0.0022]
[1646326155067,0.058819,42542.0,42537.0,0.0022]
[1646326155668,0.11763737,42544.0,42537.0,0.0022]
[1646326155868,0.02040839,42541.0,42537.0,0.16434917]
[1646326156270,0.02040839,42541.0,42537.0,0.16441393]
[1646326156669,0.02540839,42541.0,42537.0,0.16447869]
[1646326156927,0.02540839,42541.0,42537.0,0.16454345]
[1646326157326,0.02540839,42541.0,42537.0,0.16447869]
[1646326157533,0.02540839,42541.0,42539.0,0.06011806]
[1646326158125,0.02040839,42541.0,42539.0,0.06011806]
[1646326158923,0.058819,42544.0,42539.0,0.06011806]
[1646326158924,0.02040839,42543.0,42539.0,0.06011806]
[1646326159926,0.02040839,42543.0,42538.0,0.00122952]
[1646326160130,0.02040839,42543.0,42538.0,0.00116476]
[1646326160328,0.47934574,42542.0,42538.0,0.0011]
[1646326160526,0.11763174,42542.0,42538.0,0.0011]
[1646326161169,0.361714,42541.0,42538.0,0.0011]
[1646326161368,0.420536,42541.0,42538.0,0.0011]
[1646326161569,1.02347,42536.0,42529.0,0.0011]
[1646326161769,1.02347,42536.0,42524.0,0.0022]
[1646326161770,1.14114751,42534.0,42524.0,0.0022]
[1646326161971,1.14114751,42534.0,42524.0,0.0011]
[1646326161972,1.49,42531.0,42524.0,0.0011]
[1646326162166,0.368677,42528.0,42520.0,0.00360126]
[1646326162368,0.07880991,42524.0,42520.0,0.00360126]
[1646326162571,0.345207,42521.0,42518.0,0.0011]
[1646326162771,0.3,42520.0,42518.0,0.0011]
[1646326162968,0.361714,42519.0,42518.0,0.0011]
[1646326163169,0.058844,42521.0,42518.0,0.0011]
[1646326164168,0.361714,42520.0,42518.0,0.0011]
[1646326164629,0.3,42519.0,42518.0,0.0011]
[1646326165030,0.661714,42519.0,42518.0,0.0011]
[1646326165232,1.0,42518.0,42514.0,0.0011]
[1646326165538,0.404055,42515.0,42511.0,0.0509463]
[1646326165735,0.347,42514.0,42511.0,0.0509463]
[1646326165932,0.361714,42513.0,42511.0,0.0509463]
[1646326166131,0.345207,42511.0,42506.0,0.0033]
[1646326166333,0.408714,42510.0,42506.0,0.0033]
[1646326166634,0.361714,42510.0,42509.0,0.0459463]
[1646326166933,0.408714,42510.0,42509.0,0.0459463]
[1646326167833,0.047,42510.0,42509.0,0.0459463]
[1646326168267,0.047,42510.0,42506.0,0.0033]
[1646326168663,0.058846,42511.0,42506.0,0.0033]
[1646326168868,0.42056,42511.0,42507.0,0.00336165]
[1646326169065,0.058846,42511.0,42507.0,0.00336165]
[1646326169265,0.02040839,42510.0,42507.0,0.0034233]
[1646326169569,0.31040839,42510.0,42509.0,0.0459463]
[1646326169766,0.31040839,42510.0,42507.0,0.00348495]
[1646326169767,0.01040839,42510.0,42507.0,0.00348495]
[1646326169968,0.01040839,42510.0,42507.0,0.00336165]
[1646326170267,0.01040839,42510.0,42507.0,0.0033]
[1646326170470,0.058846,42511.0,42510.0,0.02081678]
[1646326170966,0.117692,42512.0,42510.0,0.06676308]
[1646326171365,0.117692,42512.0,42510.0,0.02081678]
[1646326171565,0.117692,42512.0,42510.0,0.06676308]
[1646326171767,0.3,42511.0,42510.0,0.02081678]
[1646326172028,0.3,42511.0,42507.0,0.0033]
[1646326172029,0.85,42510.0,42507.0,0.0033]
[1646326172230,0.645207,42509.0,42507.0,0.0033]
[1646326172629,0.645207,42509.0,42508.0,0.0011]
[1646326172828,0.648207,42509.0,42508.0,0.0011]
[1646326173631,0.95,42508.0,42505.0,0.0022]
[1646326173829,0.117732,42507.0,42505.0,0.0022]
[1646326174028,0.661714,42506.0,42505.0,0.0022]
[1646326174230,1.0,42505.0,42499.0,0.0481463]
[1646326174432,1.0,42505.0,42499.0,0.0022]
[1646326174433,0.345207,42504.0,42499.0,0.0022]
[1646326174731,0.661714,42503.0,42499.0,0.0022]
[1646326174929,0.645207,42502.0,42499.0,0.0022]
[1646326175131,0.3,42502.0,42499.0,0.0022]
[1646326175332,0.17661109,42504.0,42499.0,0.0022]
[1646326175676,0.058869,42504.0,42499.0,0.0022]
[1646326175978,0.361714,42503.0,42499.0,0.0022]
[1646326176176,0.06387044,42505.0,42499.0,0.0022]
[1646326176177,0.005,42505.0,42499.0,0.0022]
[1646326176380,0.361714,42506.0,42499.0,0.0022]
[1646326176578,0.058867,42507.0,42502.0,0.0459463]
[1646326176776,0.058867,42507.0,42505.0,0.18609311]
[1646326176976,0.361714,42506.0,42505.0,0.18609311]
[1646326177683,0.058867,42507.0,42505.0,0.18609311]
[1646326177881,0.006,42510.0,42505.0,0.23203941]
[1646326178082,0.058846,42511.0,42505.0,0.23203941]
[1646326178281,0.058846,42511.0,42506.0,0.17911325]
[1646326178483,0.058846,42511.0,42510.0,0.0459463]
[1646326179282,0.058846,42511.0,42506.0,0.17911325]
[1646326179546,0.058846,42511.0,42505.0,0.23303941]
[1646326180048,0.058846,42511.0,42505.0,0.23203941]
[1646326180745,0.058846,42511.0,42505.0,0.23603941]
[1646326180950,0.361714,42510.0,42505.0,0.004]
[1646326181149,0.41773,42509.0,42505.0,0.004]
[1646326181347,0.345207,42508.0,42505.0,0.004]
[1646326182146,0.345207,42508.0,42501.0,0.0022]
[1646326182346,0.40407262,42508.0,42501.0,0.0022]
[1646326182546,0.361714,42506.0,42501.0,0.0022]
[1646326182746,0.058863,42506.0,42501.0,0.0022]
[1646326183372,0.058863,42506.0,42502.0,0.0459463]
[1646326183874,0.058863,42506.0,42505.0,0.0459463]
[1646326184077,0.5933,42518.0,42505.0,0.4076603]
[1646326184078,0.11769,42514.0,42505.0,0.4076603]
[1646326184273,0.11769,42514.0,42510.0,0.0459463]
[1646326184472,0.1731,42519.0,42512.0,0.16655796]
[1646326184674,0.1731,42519.0,42517.0,0.0459463]
[1646326184873,0.001,42519.0,42517.0,0.0459463]
[1646326185073,0.05893628,42514.0,42513.0,0.361714]
[1646326185272,0.05893628,42514.0,42513.0,0.4076603]
[1646326185773,0.058841,42514.0,42513.0,0.0459463]
[1646326186775,0.059841,42514.0,42513.0,0.0459463]
[1646326187236,0.059841,42514.0,42508.0,0.002]
[1646326187434,0.059841,42514.0,42510.0,0.0459463]
[1646326187935,0.059841,42514.0,42511.0,0.16316677]
[1646326188137,0.058841,42514.0,42511.0,0.16316677]
[1646326188535,0.058841,42514.0,42512.0,0.19607777]
[1646326189637,0.058841,42514.0,42511.0,0.0499463]
[1646326190236,0.058841,42514.0,42511.0,0.0459463]
[1646326190673,0.058841,42514.0,42511.0,0.24991122]
[1646326190875,0.058841,42514.0,42511.0,0.25191122]
[1646326191677,0.060835,42519.0,42512.0,0.361907]
[1646326191879,0.00010318,42515.0,42512.0,0.361907]
[1646326192077,0.00020636,42515.0,42514.0,0.4078533]
[1646326192276,0.00030954,42515.0,42514.0,0.4078533]
[1646326192478,0.00030954,42515.0,42514.0,0.6027579]
[1646326192679,0.00020636,42515.0,42514.0,0.0455067]
[1646326192879,0.3,42518.0,42514.0,0.002]
[1646326193079,0.349984,42517.0,42514.0,0.002]
[1646326193379,0.35009885,42517.0,42514.0,0.002]
[1646326193581,0.0002297,42517.0,42516.0,0.0455067]
[1646326193783,0.00034455,42517.0,42516.0,0.0455067]
[1646326194181,0.0002297,42517.0,42516.0,0.0455067]
[1646326194451,0.058835,42519.0,42516.0,0.0455067]
[1646326194853,0.001,42517.0,42516.0,0.0455067]
[1646326195050,0.001,42517.0,42513.0,0.21085106]
[1646326195251,0.117687,42516.0,42513.0,0.21085106]
[1646326195650,0.117687,42516.0,42515.0,0.16288891]
[1646326195952,0.117687,42516.0,42515.0,0.0455067]
[1646326196851,0.001,42516.0,42515.0,0.26200356]
[1646326197052,0.001,42516.0,42515.0,0.94738056]
[1646326197255,0.001,42516.0,42515.0,1.14438056]
[1646326198169,0.05,42532.0,42515.0,1.14438056]
[1646326198170,0.00030954,42518.0,42515.0,1.14438056]
[1646326198482,0.00020636,42518.0,42517.0,0.56680305]
[1646326198670,0.00010318,42518.0,42517.0,0.61380305]
[1646326198872,0.058819,42531.0,42522.0,0.06760442]
[1646326199070,0.058819,42531.0,42523.0,0.55453402]
[1646326199269,0.058819,42531.0,42530.0,0.0455067]
[1646326200374,0.508214,42534.0,42530.0,0.0455067]
[1646326200875,0.00015124,42533.0,42530.0,0.0475067]
[1646326201072,0.00022686,42533.0,42530.0,0.0475067]
[1646326201477,0.05704086,42534.0,42530.0,0.0475067]
[1646326202121,0.05704086,42534.0,42530.0,0.0455067]
[1646326202319,0.058829,42530.0,42517.0,0.025]
[1646326202520,0.058829,42530.0,42525.0,0.0455067]
[1646326202720,0.75,42528.0,42514.0,0.16426605]
[1646326202921,0.75,42528.0,42518.0,0.007]
[1646326203120,0.49,42530.0,42518.0,0.007]
[1646326203522,0.058834,42525.0,42518.0,0.007]
[1646326204321,0.058834,42525.0,42515.0,0.18651708]
[1646326204924,0.058834,42525.0,42515.0,0.004]
[1646326205123,0.361907,42524.0,42515.0,0.004]
[1646326205323,0.432377,42524.0,42515.0,0.004]
[1646326205524,0.02347,42518.0,42510.0,0.00070638]
[1646326205819,0.385377,42517.0,42510.0,0.00070638]
[1646326206019,0.385377,42517.0,42510.0,0.00047092]
[1646326206020,0.08222,42516.0,42510.0,0.00047092]
[1646326206221,0.08222,42516.0,42501.0,0.0022]
[1646326206222,0.73084032,42515.0,42501.0,0.0022]
[1646326206423,0.361907,42512.0,42501.0,0.0022]
[1646326206620,0.349984,42510.0,42501.0,0.0022]
[1646326206824,0.349984,42510.0,42504.0,0.00047098]
[1646326207022,0.385377,42508.0,42500.0,0.0012]
[1646326207222,0.373454,42506.0,42500.0,0.0012]
[1646326207424,0.361907,42501.0,42500.0,0.0012]
[1646326207626,0.349984,42499.0,42495.0,0.0011]
[1646326210925,0.352984,42499.0,42495.0,0.0011]
[1646326212126,0.349984,42499.0,42495.0,0.0011]
[1646326213574,0.361907,42496.0,42480.0,0.01175]
[1646326213776,0.47047,42495.0,42475.0,0.01285]
[1646326213975,1.55013,42494.0,42489.0,0.00022471]
[1646326214174,0.047,42493.0,42489.0,0.00044942]
[1646326214372,0.661907,42492.0,42489.0,0.00044942]
[1646326214581,0.661907,42492.0,42475.0,0.0011]
[1646326214582,0.02347,42489.0,42475.0,0.0011]
[1646326214774,0.02347,42485.0,42475.0,0.0011]
[1646326214974,0.432377,42484.0,42475.0,0.0011]
[1646326215375,0.408907,42484.0,42475.0,0.0011]
[1646326215974,0.047,42484.0,42476.0,0.01176415]
[1646326216177,0.361907,42483.0,42479.0,0.16266361]
[1646326216374,0.047,42482.0,42479.0,0.16266361]
[1646326216577,0.361907,42480.0,42479.0,0.16266361]
[1646326216773,0.408907,42480.0,42479.0,0.16266361]
[1646326217020,0.408907,42480.0,42475.0,0.0011]
[1646326217225,0.047,42480.0,42475.0,0.0011]
[1646326217722,0.047,42480.0,42478.0,0.36401641]
[1646326217922,0.047,42480.0,42478.0,0.20963433]
[1646326218123,0.047,42480.0,42478.0,0.0011]
[1646326219021,0.04634257,42480.0,42478.0,0.0011]
[1646326219423,0.361907,42479.0,42478.0,0.0011]
[1646326220993,0.004,42479.0,42478.0,0.0011]
[1646326221184,0.14826,42488.0,42479.0,0.758]
[1646326221386,0.058878,42489.0,42480.0,0.3]
[1646326221581,0.058878,42489.0,42479.0,0.008]
[1646326221782,0.058878,42489.0,42481.0,0.20088554]
[1646326222784,0.058878,42489.0,42483.0,0.15461129]
[1646326223086,0.058878,42489.0,42484.0,0.661907]
[1646326223689,0.058866,42492.0,42484.0,0.361907]
[1646326223886,0.058866,42492.0,42491.0,0.361907]
[1646326224297,0.058866,42492.0,42490.0,0.16743653]
[1646326224534,0.058866,42492.0,42483.0,0.361907]
[1646326224942,0.058866,42492.0,42485.0,0.002]
[1646326225335,0.058866,42492.0,42486.0,0.57379544]
[1646326225537,0.058866,42492.0,42486.0,0.21188844]
[1646326228039,0.058866,42492.0,42486.0,0.15699984]
[1646326228273,0.058866,42492.0,42487.0,0.361907]
[1646326228674,0.058866,42492.0,42486.0,0.17123476]
[1646326228875,0.058866,42492.0,42488.0,0.01306944]
[1646326229675,0.058866,42492.0,42489.0,0.01316368]
[1646326229875,0.058866,42492.0,42490.0,0.01302306]
[1646326230078,0.058866,42492.0,42487.0,0.003]
[1646326230275,0.058866,42492.0,42488.0,0.01480614]
[1646326230476,0.058866,42492.0,42486.0,0.15699984]
[1646326230676,0.058866,42492.0,42488.0,0.01212499]
[1646326230879,0.058866,42492.0,42487.0,0.361907]
[1646326231075,0.058866,42492.0,42486.0,0.15699984]
[1646326231676,0.058866,42492.0,42488.0,0.361907]
[1646326231916,0.058866,42492.0,42486.0,0.21587084]
[1646326232118,0.058866,42492.0,42489.0,0.361907]
[1646326233120,0.058866,42492.0,42489.0,0.01422254]
[1646326233318,0.058866,42492.0,42490.0,0.01509208]
[1646326233618,0.058867,42496.0,42489.0,0.002]
[1646326233822,0.00013966,42493.0,42492.0,0.01257646]
[1646326234020,0.00020949,42493.0,42492.0,0.01497486]
[1646326234320,0.00020949,42493.0,42490.0,0.361907]
[1646326234521,0.00013966,42493.0,42490.0,0.01133565]
[1646326234720,0.058867,42496.0,42492.0,0.01063371]
[1646326235120,0.00020484,42494.0,42493.0,0.361907]
[1646326235324,0.00030726,42494.0,42493.0,0.18805145]
[1646326235523,0.00030726,42494.0,42493.0,0.54995845]
[1646326235767,0.00030726,42494.0,42493.0,0.18805145]
[1646326235968,0.00030726,42494.0,42492.0,0.01492378]
[1646326235969,0.00010242,42494.0,42490.0,0.002]
[1646326236172,0.058874,42494.0,42490.0,0.01105433]
[1646326236368,0.058874,42494.0,42483.0,0.361907]
[1646326236570,0.082344,42494.0,42482.0,0.02246872]
[1646326236771,0.32347,42493.0,42482.0,0.01067146]
[1646326236969,0.32347,42493.0,42486.0,0.15414427]
[1646326237167,0.02347,42493.0,42486.0,0.15414427]
[1646326237367,0.01847,42493.0,42486.0,0.15414427]
[1646326237768,0.058884,42496.0,42486.0,0.15414427]
[1646326237769,0.058884,42490.0,42486.0,0.15414427]
[1646326238369,0.058884,42490.0,42486.0,0.16603154]
[1646326238568,0.058884,42490.0,42486.0,0.01188727]
[1646326238773,0.058884,42490.0,42486.0,0.01035544]
[1646326238971,0.058884,42490.0,42481.0,0.17495926]
[1646326239173,0.058884,42490.0,42482.0,0.361907]
[1646326239417,0.058884,42490.0,42486.0,0.01190027]
[1646326239719,0.058884,42490.0,42486.0,0.22275311]
[1646326239922,0.058884,42490.0,42481.0,0.17495926]
[1646326240120,0.058884,42490.0,42486.0,0.01438682]
[1646326240322,0.058884,42490.0,42482.0,0.01118032]
[1646326240521,0.058884,42490.0,42482.0,0.07005732]
[1646326240719,0.058884,42490.0,42482.0,0.058877]
[1646326241019,0.058884,42490.0,42488.0,0.16730065]
[1646326241221,0.058884,42490.0,42486.0,0.01484592]
[1646326241418,0.058884,42490.0,42486.0,0.01229389]
[1646326241621,0.685377,42489.0,42479.0,0.008]
[1646326243024,0.686377,42489.0,42479.0,0.008]
[1646326243479,0.02347,42487.0,42479.0,0.008]
[1646326243679,0.058903,42485.0,42479.0,0.008]
[1646326243877,0.361907,42484.0,42479.0,0.008]
[1646326244075,0.349984,42482.0,42479.0,0.008]
[1646326245077,0.352984,42482.0,42479.0,0.008]
[1646326246177,0.349984,42482.0,42479.0,0.008]
[1646326247837,0.344984,42482.0,42479.0,0.008]
[1646326248241,0.176706,42484.0,42479.0,0.008]
[1646326248839,0.176706,42484.0,42480.0,0.15498264]
[1646326249037,0.180706,42484.0,42480.0,0.15498264]
[1646326249237,0.004,42484.0,42483.0,0.18621123]
[1646326250441,0.058903,42485.0,42483.0,0.18621123]
[1646326250668,0.058903,42485.0,42484.0,0.3]
[1646326250876,0.117768,42490.0,42484.0,0.3]
[1646326251073,0.117768,42490.0,42483.0,0.18621123]
[1646326251074,0.125768,42490.0,42483.0,0.18621123]
[1646326251474,0.125768,42490.0,42487.0,0.21380264]
[1646326251671,0.125768,42490.0,42483.0,0.18621123]
[1646326252173,0.058877,42491.0,42484.0,0.420945]
[1646326252372,0.058877,42491.0,42484.0,0.058875]
[1646326252781,0.058877,42491.0,42485.0,0.34276387]
[1646326253274,0.36207,42490.0,42484.0,0.002]
[1646326253477,0.762573,42490.0,42484.0,0.002]
[1646326253672,0.36207,42489.0,42484.0,0.002]
[1646326253878,0.420957,42489.0,42484.0,0.002]
[1646326254073,0.420957,42489.0,42478.0,0.0011]
[1646326254074,0.36471322,42487.0,42478.0,0.0011]
[1646326254278,0.36207,42484.0,42478.0,0.0011]
[1646326254524,0.344796,42482.0,42478.0,0.0011]
[1646326254728,0.058909,42481.0,42479.0,0.0060096]
[1646326254925,0.66207,42480.0,42479.0,0.0060096]
[1646326255328,0.74087991,42480.0,42479.0,0.0060096]
[1646326255523,0.66207,42480.0,42479.0,0.0060096]
[1646326256824,0.36207,42480.0,42479.0,0.0060096]
[1646326260779,0.36207,42480.0,42471.0,0.0011]
[1646326260780,0.8,42479.0,42465.0,0.02362547]
[1646326260981,0.88237,42479.0,42471.0,0.00012575]
[1646326261182,0.88237,42479.0,42471.0,0.0002515]
[1646326261380,0.0589,42479.0,42472.0,0.16137856]
[1646326261579,0.0589,42479.0,42476.0,0.20757641]
[1646326261781,0.36207,42478.0,42476.0,0.20757641]
[1646326262016,0.008,42480.0,42472.0,0.16137856]
[1646326262416,0.058884,42484.0,42475.0,0.20890172]
[1646326262722,0.058884,42484.0,42473.0,0.07308547]
[1646326263023,0.058884,42484.0,42475.0,0.17954182]
[1646326263419,0.058884,42484.0,42473.0,0.05889]
[1646326263616,0.358884,42484.0,42473.0,0.05889]
[1646326263819,0.358884,42484.0,42460.0,0.56272571]
[1646326263820,0.38554,42483.0,42468.0,0.01176]
[1646326264021,0.058901,42480.0,42471.0,0.00021961]
[1646326264215,0.058901,42480.0,42471.0,0.00043922]
[1646326264417,0.058901,42480.0,42472.0,0.20357428]
[1646326264716,0.058901,42480.0,42471.0,0.00043922]
[1646326264918,0.382371,42480.0,42470.0,0.21963479]
[1646326265116,0.38554,42479.0,42465.0,0.01265008]
[1646326265317,0.176734,42477.0,42466.0,0.01375271]
[1646326265679,0.476734,42477.0,42467.0,0.00021909]
[1646326265881,0.36207,42476.0,42467.0,0.00021909]
[1646326266081,0.476734,42477.0,42467.0,0.00021909]
[1646326266082,0.344796,42473.0,42467.0,0.00021909]
[1646326266282,0.344796,42473.0,42467.0,0.00014606]
[1646326266487,0.058909,42474.0,42465.0,0.01379665]
[1646326266884,0.058909,42474.0,42472.0,0.17360422]
[1646326267086,0.1453,42478.0,42472.0,0.17360422]
[1646326267285,0.1453,42478.0,42474.0,0.18639264]
[1646326267286,0.003,42478.0,42474.0,0.18639264]
[1646326267680,0.003,42478.0,42472.0,0.17360422]
[1646326267882,0.36207,42477.0,42472.0,0.17360422]
[1646326268080,0.003,42478.0,42472.0,0.17360422]
[1646326268479,0.003,42478.0,42470.0,0.01544837]
[1646326268882,0.058891,42479.0,42470.0,0.01544837]
[1646326269282,0.117791,42478.0,42470.0,0.01544837]
[1646326269748,0.117791,42478.0,42470.0,0.18902542]
[1646326270545,0.117791,42478.0,42470.0,0.01544837]
[1646326270946,0.117791,42478.0,42466.0,0.00021745]
[1646326270947,0.36207,42476.0,42466.0,0.01595261]
[1646326271146,0.3,42477.0,42466.0,0.01595261]
[1646326271346,0.3,42477.0,42466.0,0.01084503]
[1646326271544,0.3,42477.0,42472.0,0.17047014]
[1646326271748,0.118791,42478.0,42466.0,0.01106248]
[1646326271944,0.418791,42478.0,42466.0,0.01106248]
[1646326272144,0.418791,42478.0,42466.0,0.01062758]
[1646326272145,0.36207,42477.0,42466.0,0.01062758]
[1646326272444,0.417791,42478.0,42466.0,0.01430595]
[1646326272643,0.417791,42478.0,42473.0,0.20601332]
[1646326272845,0.36207,42477.0,42473.0,0.20601332]
[1646326273044,0.36207,42477.0,42470.0,0.01413407]
[1646326273968,0.36207,42477.0,42475.0,0.19924741]
[1646326274169,0.36207,42477.0,42470.0,0.01413407]
[1646326274470,0.36207,42477.0,42469.0,0.17009586]
[1646326274968,0.417791,42478.0,42470.0,0.01133177]
[1646326275167,0.36207,42477.0,42470.0,0.01133177]
[1646326275368,0.417791,42478.0,42470.0,0.01133177]
[1646326275667,0.36207,42477.0,42470.0,0.01133177]
[1646326275868,0.417791,42478.0,42470.0,0.01133177]
[1646326276269,0.36207,42477.0,42470.0,0.17466329]
[1646326276670,0.417791,42478.0,42472.0,0.01354234]
[1646326276923,0.117791,42478.0,42472.0,0.01582694]
[1646326277123,0.36207,42477.0,42472.0,0.01013529]
[1646326277323,0.36207,42477.0,42466.0,0.01315471]
[1646326277527,0.476693,42478.0,42465.0,0.0002169]
[1646326277528,0.344796,42476.0,42465.0,0.0002169]
[1646326277724,0.058913,42473.0,42465.0,0.0001446]
[1646326277927,0.66207,42472.0,42465.0,7.23e-05]
[1646326278127,0.66207,42472.0,42464.0,0.0022]
[1646326278128,0.68554,42472.0,42464.0,0.0022]
[1646326278429,0.344796,42470.0,42464.0,0.0011]
[1646326278626,0.3,42469.0,42464.0,0.0011]
[1646326278825,0.36207,42468.0,42461.0,0.00285244]
[1646326279224,0.36207,42468.0,42461.0,0.00263496]
[1646326279426,0.36175429,42468.0,42461.0,0.0022]
[1646326279629,0.35175429,42468.0,42461.0,0.0022]
[1646326280226,0.52852729,42468.0,42461.0,0.0022]
[1646326280671,0.55199729,42468.0,42461.0,0.0022]
[1646326281275,0.59899729,42468.0,42461.0,0.0022]
[1646326281476,0.344796,42465.0,42461.0,0.0022]
[1646326281676,0.644796,42465.0,42459.0,0.0011]
[1646326281878,0.351741,42463.0,42459.0,0.0011]
[1646326282777,0.33461782,42463.0,42459.0,0.0011]
[1646326285041,0.33449238,42463.0,42459.0,0.0011]
[1646326287342,0.33449238,42463.0,42459.0,0.19157573]
[1646326287546,0.33449238,42463.0,42459.0,0.0011]
[1646326288172,0.39341638,42463.0,42459.0,0.0011]
[1646326288677,0.33449238,42463.0,42459.0,0.18756297]
[1646326288876,0.33449238,42463.0,42459.0,0.0011]
[1646326290078,0.058927,42464.0,42459.0,0.0011]
[1646326290379,0.058927,42464.0,42460.0,0.01287456]
[1646326290578,0.362168,42463.0,42460.0,0.01287456]
[1646326290775,0.362168,42463.0,42459.0,0.0011]
[1646326291176,0.062927,42464.0,42459.0,0.0011]
[1646326291380,0.062927,42464.0,42460.0,0.20740018]
[1646326291576,0.062927,42464.0,42461.0,0.21069486]
[1646326291777,0.062927,42464.0,42462.0,0.67542391]
[1646326291778,0.004,42464.0,42462.0,0.67542391]
[1646326292044,0.004,42464.0,42461.0,0.26544832]
[1646326292045,0.091868,42472.0,42465.0,0.0141954]
[1646326292244,0.091868,42472.0,42464.0,0.008]
[1646326292442,0.091868,42472.0,42466.0,0.01301276]
[1646326292646,0.091868,42472.0,42469.0,0.01114714]
[1646326293047,0.362168,42471.0,42465.0,0.01224166]
[1646326293251,0.362168,42471.0,42464.0,0.008]
[1646326293648,0.362168,42471.0,42465.0,0.17190305]
[1646326293850,0.362168,42471.0,42464.0,0.02047023]
[1646326294249,0.362168,42471.0,42464.0,0.008]
[1646326294250,0.538914,42471.0,42464.0,0.008]
[1646326295153,0.542914,42471.0,42464.0,0.008]
[1646326295551,0.317119,42469.0,42464.0,0.008]
[1646326295796,0.376034,42469.0,42464.0,0.008]
[1646326297201,0.382034,42469.0,42464.0,0.008]
[1646326298400,1.0,42468.0,42459.0,0.0011]
[1646326298601,0.117856,42465.0,42459.0,0.0011]
[1646326298801,0.317119,42464.0,42459.0,0.0011]
[1646326299202,0.058927,42464.0,42459.0,0.0011]
[1646326299440,0.003,42465.0,42461.0,0.01112267]
[1646326299630,0.003,42465.0,42462.0,0.409168]
[1646326299830,0.003,42465.0,42462.0,0.42017091]
[1646326300230,0.003,42465.0,42464.0,0.56699314]
[1646326300433,0.05,42475.0,42465.0,0.0149814]
[1646326300632,0.05,42475.0,42466.0,0.0140634]
[1646326300833,0.05,42475.0,42468.0,0.01093084]
[1646326301036,0.05,42475.0,42469.0,0.01378062]
[1646326301234,0.34124322,42480.0,42470.0,0.01083951]
[1646326301438,0.34124322,42480.0,42464.0,0.20482514]